fUSD/lending_fUSD_20250307
["ID","MTS","AMOUNT","RATE_DAILY","PERIOD"]
[355581227,1741323043965,-500.0,9.799e-05,2]
[355581228,1741323043973,-944.57,9.799e-05,2]
[355581229,1741323043982,-500.0,9.799e-05,2]
[355581230,1741323043991,-539.97,9.799e-05,2]
[355581231,1741323044001,-500.0,9.799e-05,2]
[355581232,1741323044010,-500.0,9.799e-05,2]
[355581233,1741323044020,-500.0,9.799e-05,2]
[355581234,1741323044029,-500.0,9.799e-05,2]
[355581235,1741323044039,-320.52724045,9.799e-05,2]
[355581236,1741323044049,-500.0,9.799e-05,2]
[355581237,1741323044058,-500.0,9.799e-05,2]
[355581238,1741323044068,-844.16,9.799e-05,2]
[355581239,1741323044077,-500.0,9.799e-05,2]
[355581240,1741323044087,-500.0,9.799e-05,2]
[355581241,1741323044096,-500.0,9.799e-05,2]
[355581242,1741323044106,-500.0,9.799e-05,2]
[355581243,1741323044115,-500.0,9.799e-05,2]
[355581244,1741323044125,-209.98928336,9.799e-05,2]
[355581245,1741323044134,-907.62,9.799e-05,2]
[355581246,1741323044144,-500.0,9.799e-05,2]
[355581247,1741323044153,-1204.35,9.799e-05,2]
[355581248,1741323044163,-500.0,9.799e-05,2]
[355581249,1741323044172,-500.0,9.799e-05,2]
[355581250,1741323044182,-1008.7,9.799e-05,2]
[355581251,1741323044192,-500.0,9.799e-05,2]
[355581252,1741323044202,-500.0,9.799e-05,2]
[355581253,1741323044211,-500.0,9.799e-05,2]
[355581254,1741323044220,-500.0,9.799e-05,2]
[355581255,1741323044229,-500.0,9.799e-05,2]
[355581256,1741323044238,-500.0,9.799e-05,2]
[355581257,1741323044247,-500.0,9.799e-05,2]
[355581258,1741323044256,-500.0,9.799e-05,2]
[355581259,1741323044265,-500.0,9.799e-05,2]
[355581260,1741323044275,-500.0,9.799e-05,2]
[355581261,1741323044285,-500.0,9.799e-05,2]
[355581262,1741323044295,-500.0,9.799e-05,2]
[355581263,1741323044304,-1089.38,9.799e-05,2]
[355581264,1741323044314,-500.0,9.799e-05,2]
[355581265,1741323044323,-500.0,9.799e-05,2]
[355581266,1741323044332,-500.0,9.799e-05,2]
[355581267,1741323044342,-500.0,9.799e-05,2]
[355581268,1741323044351,-500.0,9.799e-05,2]
[355581269,1741323044361,-1189.88,9.799e-05,2]
[355581270,1741323044371,-500.0,9.799e-05,2]
[355581271,1741323044381,-933.45,9.799e-05,2]
[355581272,1741323044391,-1552.79,9.799e-05,2]
[355581273,1741323044399,-500.0,9.799e-05,2]
[355581274,1741323044408,-509.28943386,9.799e-05,2]
[355581275,1741323044418,-940.39,9.799e-05,2]
[355581276,1741323044427,-500.0,9.799e-05,2]
[355581277,1741323044436,-500.0,9.799e-05,2]
[355581278,1741323044446,-500.0,9.799e-05,2]
[355581279,1741323044456,-1476.76,9.799e-05,2]
[355581280,1741323044467,-500.0,9.799e-05,2]
[355581281,1741323044476,-500.0,9.799e-05,2]
[355581282,1741323044485,-1195.75,9.799e-05,2]
[355581283,1741323044495,-500.0,9.799e-05,2]
[355581284,1741323044506,-1177.23,9.799e-05,2]
[355581285,1741323044518,-1232.29,9.799e-05,2]
[355581286,1741323044527,-500.0,9.799e-05,2]
[355581287,1741323044537,-500.0,9.799e-05,2]
[355581288,1741323044546,-513.23207676,9.799e-05,2]
[355581289,1741323044556,-500.0,9.799e-05,2]
[355581290,1741323044565,-500.0,9.799e-05,2]
[355581291,1741323044574,-500.0,9.799e-05,2]
[355581292,1741323044583,-1007.46,9.799e-05,2]
[355581293,1741323044592,-500.0,9.799e-05,2]
[355581294,1741323044603,-500.0,9.799e-05,2]
[355581295,1741323044612,-2046.08,9.799e-05,2]
[355581296,1741323044622,-1210.81,9.799e-05,2]
[355581297,1741323044632,-500.0,9.799e-05,2]
[355581298,1741323044642,-500.0,9.799e-05,2]
[355581299,1741323044651,-500.0,9.799e-05,2]
[355581300,1741323044660,-1714.95,9.799e-05,2]
[355581301,1741323044669,-500.0,9.799e-05,2]
[355581302,1741323044679,-1968.94,9.799e-05,2]
[355581303,1741323044688,-2685.5,9.799e-05,2]
[355581304,1741323044697,-565.38,9.799e-05,2]
[355581305,1741323044707,-1412.9,9.799e-05,2]
[355581306,1741323044716,-5255.12,9.799e-05,2]
[355581307,1741323044726,-500.0,9.799e-05,2]
[355581308,1741323044735,-500.0,9.799e-05,2]
[355581309,1741323044744,-4414.72,9.799e-05,2]
[355581310,1741323044754,-1085.33,9.799e-05,2]
[355581311,1741323044763,-3537.78,9.799e-05,2]
[355581312,1741323044772,-719.21,9.799e-05,2]
[355581313,1741323044782,-1019.76,9.799e-05,2]
[355581314,1741323044791,-21961.58,9.799e-05,2]
[355581315,1741323044801,-1069.52,9.799e-05,2]
[355581316,1741323044810,-4082.04,9.799e-05,2]
[355581317,1741323044819,-1078.06,9.799e-05,2]
[355581318,1741323044829,-6195.75,9.799e-05,2]
[355581319,1741323044839,-503.72434625,9.799e-05,2]
[355581320,1741323044847,-7842.51,9.799e-05,2]
[355581321,1741323044856,-961.64,9.799e-05,2]
[355581322,1741323044866,-6968.82,9.799e-05,2]
[355581323,1741323044875,-525.97955183,9.799e-05,2]
[355581324,1741323044884,-1326.73,9.799e-05,2]
[355581325,1741323044893,-505.57138225,9.799e-05,2]
[355581326,1741323044903,-502.45165313,9.799e-05,2]
[355581327,1741323044913,-2516.5,9.799e-05,2]
[355581328,1741323044922,-515.88459675,9.799e-05,2]
[355581329,1741323044931,-1000.0,9.799e-05,2]
[355581330,1741323044940,-504.07399709,9.799e-05,2]
[355581331,1741323044949,-646.38606624,9.799e-05,2]
[355581332,1741323044958,-3781.01,9.799e-05,2]
[355581333,1741323044967,-2847.46,9.799e-05,2]
[355581334,1741323044977,-500.92125834,9.799e-05,2]
[355581335,1741323044986,-2399.14,9.799e-05,2]
[355581336,1741323044996,-502.61298821,9.799e-05,2]
[355581337,1741323045005,-1745.56,9.799e-05,2]
[355581338,1741323045014,-577.57435705,9.799e-05,2]
[355581339,1741323045024,-939.55,9.799e-05,2]
[355581340,1741323045033,-500.0,9.799e-05,2]
[355581341,1741323045042,-2479.67,9.799e-05,2]
[355581342,1741323045051,-527.0,9.799e-05,2]
[355581343,1741323045060,-2812.39,9.799e-05,2]
[355581344,1741323045068,-1892.95,9.799e-05,2]
[355581345,1741323045078,-500.0,9.799e-05,2]
[355581346,1741323045087,-500.0,9.799e-05,2]
[355581347,1741323045096,-18626.6,9.799e-05,2]
[355581348,1741323045106,-500.0,9.799e-05,2]
[355581349,1741323045115,-500.0,9.799e-05,2]
[355581350,1741323045300,-807.3,9.799e-05,2]
[355581351,1741323045310,-500.0,9.799e-05,2]
[355581352,1741323045320,-501.11538575,9.799e-05,2]
[355581353,1741323045329,-500.0,9.799e-05,2]
[355581354,1741323045338,-500.0,9.799e-05,2]
[355581355,1741323045347,-2945.48,9.799e-05,2]
[355581356,1741323045357,-500.0,9.799e-05,2]
[355581357,1741323045367,-2230.47,9.799e-05,2]
[355581358,1741323045376,-500.0,9.799e-05,2]
[355581359,1741323045385,-4558.46,9.799e-05,2]
[355581360,1741323045394,-501.6536026,9.799e-05,2]
[355581361,1741323045403,-500.0,9.799e-05,2]
[355581362,1741323045412,-2014.25,9.799e-05,2]
[355581363,1741323045421,-637.82,9.799e-05,2]
[355581364,1741323045431,-500.0,9.799e-05,2]
[355581365,1741323045440,-7119.58,9.799e-05,2]
[355581366,1741323045449,-502.29771815,9.799e-05,2]
[355581367,1741323045459,-500.0,9.799e-05,2]
[355581368,1741323045468,-500.0,9.799e-05,2]
[355581369,1741323045477,-501.48650288,9.799e-05,2]
[355581370,1741323045486,-1041.33,9.799e-05,2]
[355581371,1741323045496,-1908.73,9.799e-05,2]
[355581372,1741323045506,-500.0,9.799e-05,2]
[355581373,1741323045520,-500.0,9.799e-05,2]
[355581374,1741323045530,-500.0,9.799e-05,2]
[355581375,1741323045539,-4066.81,9.799e-05,2]
[355581376,1741323045549,-500.0,9.799e-05,2]
[355581377,1741323045558,-500.0,9.799e-05,2]
[355581378,1741323045569,-1676.0,9.799e-05,2]
[355581379,1741323045578,-500.0,9.799e-05,2]
[355581380,1741323045587,-1210.55,9.799e-05,2]
[355581381,1741323045597,-500.0,9.799e-05,2]
[355581382,1741323045607,-500.0,9.799e-05,2]
[355581383,1741323045616,-1084.96,9.799e-05,2]
[355581384,1741323045626,-1639.13,9.799e-05,2]
[355581385,1741323045635,-442.07416388,9.799e-05,2]
[355581386,1741323045644,-1265.15,9.799e-05,2]
[355581387,1741323045653,-500.0,9.799e-05,2]
[355581388,1741323045662,-4055.04,9.799e-05,2]
[355581389,1741323045671,-2459.75,9.799e-05,2]
[355581390,1741323045681,-500.0,9.799e-05,2]
[355581391,1741323045690,-589.46,9.799e-05,2]
[355581392,1741323045698,-3552.16,9.799e-05,2]
[355581393,1741323045708,-526.08,9.799e-05,2]
[355581394,1741323045716,-500.0,9.799e-05,2]
[355581395,1741323045726,-501.34665073,9.799e-05,2]
[355581396,1741323045735,-500.0,9.799e-05,2]
[355581397,1741323045746,-500.0,9.799e-05,2]
[355581398,1741323045754,-500.0,9.799e-05,2]
[355581399,1741323045762,-500.0,9.799e-05,2]
[355581400,1741323045772,-1935.51,9.799e-05,2]
[355581401,1741323045781,-500.0,9.799e-05,2]
[355581402,1741323045789,-3128.25,9.799e-05,2]
[355581403,1741323045797,-1074.37,9.799e-05,2]
[355581404,1741323045806,-500.0,9.799e-05,2]
[355581405,1741323045815,-500.0,9.799e-05,2]
[355581406,1741323045824,-500.0,9.799e-05,2]
[355581407,1741323045834,-500.0,9.799e-05,2]
[355581408,1741323045843,-1423.1,9.799e-05,2]
[355581409,1741323045853,-500.0,9.799e-05,2]
[355581410,1741323045862,-1721.78,9.799e-05,2]
[355581411,1741323045871,-500.0,9.799e-05,2]
[355581412,1741323045880,-521.97680646,9.799e-05,2]
[355581413,1741323045890,-600608.26466643,9.8e-05,2]
[355581414,1741323045901,-1000.0,9.802e-05,2]
[355581415,1741323045910,-1000.0,9.814e-05,2]
[355581416,1741323045920,-150.0,9.819e-05,2]
[355581417,1741323045929,-150.0,9.825e-05,2]
[355581418,1741323045938,-1000.0,9.831e-05,2]
[355581419,1741323045947,-150.0,9.832e-05,2]
[355581420,1741323045962,-1000.0,9.833e-05,2]
[355581421,1741323045973,-1000.0,9.834e-05,2]
[355581422,1741323045982,-1000.0,9.836e-05,2]
[355581423,1741323045992,-232.03492036,9.837e-05,2]
[355581424,1741323046001,-1000.0,9.84e-05,2]
[355581425,1741323046010,-150.0,9.846e-05,2]
[355581426,1741323046020,-1000.0,9.85e-05,2]
[355581427,1741323046029,-1000.0,9.852e-05,2]
[355581428,1741323046044,-213.10517898,9.857e-05,2]
[355581429,1741323046053,-150.0,9.858e-05,2]
[355581430,1741323046063,-150.0,9.861e-05,2]
[355581431,1741323046072,-769.5529,9.861e-05,2]
[355581432,1741323046081,-2747.5122,9.862e-05,2]
[355581433,1741323046090,-1917.1245,9.862e-05,2]
[355581434,1741323046099,-1000.0,9.868e-05,2]
[355581435,1741323046109,-2032.0,9.871e-05,2]
[355581436,1741323046119,-1278.0,9.871e-05,2]
[355581437,1741323046128,-571.0,9.871e-05,2]
[355581438,1741323046138,-641.0,9.871e-05,2]
[355581439,1741323046148,-1459.0,9.871e-05,2]
[355581440,1741323046165,-150.793,9.871e-05,2]
[355581441,1741323046176,-788.0,9.871e-05,2]
[355581442,1741323046185,-1271.21,9.871e-05,2]
[355581443,1741323046196,-541.0,9.871e-05,2]
[355581444,1741323046206,-907.0,9.871e-05,2]
[355581445,1741323046215,-1431.505,9.871e-05,2]
[355581446,1741323046224,-4042.0,9.871e-05,2]
[355581447,1741323046235,-3931.0,9.871e-05,2]
[355581448,1741323046247,-155.094,9.871e-05,2]
[355581449,1741323046256,-1012.0,9.871e-05,2]
[355581450,1741323046266,-150.0,9.874e-05,2]
[355581451,1741323046275,-1191.247,9.882e-05,2]
[355581452,1741323046285,-205.12893203,9.882e-05,2]
[355581453,1741323046296,-5673.47870728,9.903e-05,2]
[355581454,1741323046306,-150.0,9.903e-05,2]
[355581455,1741323046316,-150.0,9.903e-05,2]
[355581456,1741323046325,-5673.47870728,9.91e-05,2]
[355581457,1741323046335,-150.0,9.92e-05,2]
[355581458,1741323046345,-1000.0,9.921e-05,2]
[355581459,1741323046354,-836.31,9.923e-05,2]
[355581460,1741323046363,-1318.0,9.925e-05,2]
[355581461,1741323046371,-150.0,9.927e-05,2]
[355581462,1741323046382,-5673.47870728,9.931e-05,2]
[355581463,1741323046391,-1000.0,9.933e-05,2]
[355581464,1741323046401,-150.0,9.935e-05,2]
[355581465,1741323046410,-1000.0,9.955e-05,2]
[355581466,1741323046421,-150.0,9.959e-05,2]
[355581467,1741323046430,-500.0,9.96e-05,2]
[355581468,1741323046441,-295.51247138,9.96e-05,2]
[355581469,1741323046450,-500.0,9.96e-05,2]
[355581470,1741323046459,-229.42236543,9.96e-05,2]
[355581471,1741323046469,-517.95249043,9.961e-05,2]
[355581472,1741323046478,-500.0,9.961e-05,2]
[355581473,1741323046487,-500.0,9.961e-05,2]
[355581474,1741323046496,-500.0,9.961e-05,2]
[355581475,1741323046508,-500.0,9.961e-05,2]
[355581476,1741323046519,-500.0,9.961e-05,2]
[355581477,1741323046529,-500.0,9.961e-05,2]
[355581478,1741323046538,-500.0,9.961e-05,2]
[355581479,1741323046547,-500.0,9.961e-05,2]
[355581480,1741323046557,-500.0,9.961e-05,2]
[355581481,1741323046566,-500.0,9.961e-05,2]
[355581482,1741323046576,-500.0,9.961e-05,2]
[355581484,1741323046586,-500.0,9.961e-05,2]
[355581486,1741323046595,-500.0,9.961e-05,2]
[355581488,1741323046605,-500.0,9.961e-05,2]
[355581490,1741323046614,-500.0,9.961e-05,2]
[355581491,1741323046622,-500.0,9.961e-05,2]
[355581492,1741323046632,-503.25218055,9.961e-05,2]
[355581493,1741323046641,-500.0,9.961e-05,2]
[355581494,1741323046650,-500.0,9.961e-05,2]
[355581495,1741323046659,-500.0,9.961e-05,2]
[355581496,1741323046668,-500.0,9.961e-05,2]
[355581497,1741323046677,-500.0,9.961e-05,2]
[355581498,1741323046687,-500.0,9.961e-05,2]
[355581499,1741323046696,-500.0,9.961e-05,2]
[355581500,1741323046705,-500.0,9.961e-05,2]
[355581501,1741323046714,-500.0,9.961e-05,2]
[355581502,1741323046723,-500.0,9.961e-05,2]
[355581503,1741323046732,-500.0,9.961e-05,2]
[355581504,1741323046741,-311.25682367,9.961e-05,2]
[355581505,1741323046750,-500.0,9.961e-05,2]
[355581506,1741323046760,-500.0,9.961e-05,2]
[355581507,1741323046769,-529.71347297,9.961e-05,2]
[355581508,1741323046778,-500.0,9.961e-05,2]
[355581509,1741323046788,-500.0,9.961e-05,2]
[355581510,1741323046797,-500.0,9.961e-05,2]
[355581511,1741323046806,-500.0,9.961e-05,2]
[355581512,1741323046815,-500.0,9.961e-05,2]
[355581513,1741323046823,-500.0,9.961e-05,2]
[355581514,1741323046832,-500.0,9.961e-05,2]
[355581515,1741323046841,-376.65061262,9.961e-05,2]
[355581516,1741323046850,-500.0,9.961e-05,2]
[355581517,1741323046859,-500.0,9.961e-05,2]
[355581518,1741323046869,-500.0,9.961e-05,2]
[355581519,1741323046879,-500.0,9.961e-05,2]
[355581520,1741323046888,-500.0,9.961e-05,2]
[355581521,1741323046897,-500.0,9.961e-05,2]
[355581522,1741323046906,-500.0,9.961e-05,2]
[355581523,1741323046916,-500.0,9.961e-05,2]
[355581524,1741323046925,-500.0,9.961e-05,2]
[355581525,1741323046934,-500.0,9.961e-05,2]
[355581526,1741323046943,-500.0,9.961e-05,2]
[355581527,1741323046954,-500.0,9.961e-05,2]
[355581528,1741323046963,-500.0,9.961e-05,2]
[355581529,1741323046972,-500.0,9.961e-05,2]
[355581530,1741323046981,-500.0,9.961e-05,2]
[355581531,1741323046991,-680.24,9.961e-05,2]
[355581532,1741323047000,-500.0,9.961e-05,2]
[355581533,1741323047010,-500.0,9.961e-05,2]
[355581534,1741323047019,-500.0,9.961e-05,2]
[355581535,1741323047029,-1000.0,9.961e-05,2]
[355581536,1741323047038,-500.0,9.961e-05,2]
[355581537,1741323047047,-500.0,9.961e-05,2]
[355581538,1741323047057,-500.0,9.961e-05,2]
[355581539,1741323047066,-500.0,9.961e-05,2]
[355581540,1741323047080,-500.0,9.961e-05,2]
[355581541,1741323047090,-500.0,9.961e-05,2]
[355581542,1741323047099,-500.0,9.961e-05,2]
[355581543,1741323047108,-500.0,9.961e-05,2]
[355581544,1741323047117,-500.0,9.961e-05,2]
[355581545,1741323047127,-500.0,9.961e-05,2]
[355581546,1741323047136,-500.0,9.961e-05,2]
[355581547,1741323047145,-500.0,9.961e-05,2]
[355581548,1741323047155,-500.0,9.961e-05,2]
[355581549,1741323047164,-500.0,9.961e-05,2]
[355581550,1741323047173,-500.0,9.961e-05,2]
[355581551,1741323047182,-512.83560706,9.961e-05,2]
[355581552,1741323047191,-500.0,9.961e-05,2]
[355581553,1741323047201,-501.22528496,9.961e-05,2]
[355581554,1741323047211,-500.0,9.961e-05,2]
[355581555,1741323047220,-500.0,9.961e-05,2]
[355581556,1741323047229,-501.92927506,9.961e-05,2]
[355581557,1741323047238,-500.0,9.961e-05,2]
[355581558,1741323047247,-500.0,9.961e-05,2]
[355581559,1741323047256,-500.0,9.961e-05,2]
[355581560,1741323047266,-500.0,9.961e-05,2]
[355581561,1741323047275,-500.0,9.961e-05,2]
[355581562,1741323047284,-510.23619292,9.961e-05,2]
[355581563,1741323047293,-503.00515897,9.961e-05,2]
[355581564,1741323047302,-500.0,9.961e-05,2]
[355581565,1741323047312,-500.0,9.961e-05,2]
[355581566,1741323047321,-500.0,9.961e-05,2]
[355581567,1741323047330,-500.0,9.961e-05,2]
[355581568,1741323047339,-500.0,9.961e-05,2]
[355581569,1741323047347,-500.0,9.961e-05,2]
[355581570,1741323047357,-500.0,9.961e-05,2]
[355581571,1741323047365,-500.0,9.961e-05,2]
[355581572,1741323047374,-500.0,9.961e-05,2]
[355581573,1741323047383,-500.0,9.961e-05,2]
[355581574,1741323047392,-500.0,9.961e-05,2]
[355581575,1741323047401,-500.0,9.961e-05,2]
[355581576,1741323047410,-500.0,9.961e-05,2]
[355581577,1741323047419,-500.0,9.961e-05,2]
[355581578,1741323047428,-500.0,9.961e-05,2]
[355581579,1741323047438,-500.0,9.961e-05,2]
[355581580,1741323047447,-500.0,9.961e-05,2]
[355581581,1741323047456,-500.0,9.961e-05,2]
[355581582,1741323047465,-500.0,9.961e-05,2]
[355581583,1741323047475,-500.0,9.961e-05,2]
[355581584,1741323047483,-500.0,9.961e-05,2]
[355581585,1741323047493,-485.25958072,9.961e-05,2]
[355581586,1741323047502,-500.0,9.961e-05,2]
[355581587,1741323047513,-500.0,9.961e-05,2]
[355581588,1741323047522,-500.0,9.961e-05,2]
[355581589,1741323047532,-386.09557231,9.961e-05,2]
[355581590,1741323047541,-500.0,9.961e-05,2]
[355581591,1741323047551,-500.0,9.961e-05,2]
[355581592,1741323047560,-500.0,9.961e-05,2]
[355581593,1741323047569,-500.0,9.961e-05,2]
[355581594,1741323047579,-500.0,9.961e-05,2]
[355581595,1741323047589,-500.0,9.961e-05,2]
[355581596,1741323047599,-500.0,9.961e-05,2]
[355581597,1741323047608,-510.67373008,9.961e-05,2]
[355581598,1741323047618,-500.0,9.961e-05,2]
[355581599,1741323047627,-500.0,9.961e-05,2]
[355581600,1741323047636,-500.0,9.961e-05,2]
[355581601,1741323047645,-500.0,9.961e-05,2]
[355581602,1741323047654,-500.0,9.961e-05,2]
[355581603,1741323047663,-500.0,9.961e-05,2]
[355581604,1741323047673,-500.0,9.961e-05,2]
[355581605,1741323047682,-500.0,9.961e-05,2]
[355581606,1741323047691,-512.03351382,9.961e-05,2]
[355581607,1741323047700,-500.0,9.961e-05,2]
[355581608,1741323047709,-500.0,9.961e-05,2]
[355581609,1741323047718,-500.0,9.961e-05,2]
[355581610,1741323047728,-500.0,9.961e-05,2]
[355581611,1741323047737,-1005.81,9.961e-05,2]
[355581612,1741323047746,-500.0,9.961e-05,2]
[355581613,1741323047755,-318.93830426,9.961e-05,2]
[355581614,1741323047764,-500.0,9.961e-05,2]
[355581615,1741323047774,-500.0,9.961e-05,2]
[355581616,1741323047783,-500.0,9.961e-05,2]
[355581617,1741323047792,-500.0,9.961e-05,2]
[355581618,1741323047802,-1111.23,9.961e-05,2]
[355581619,1741323047811,-500.0,9.961e-05,2]
[355581620,1741323047821,-500.0,9.961e-05,2]
[355581621,1741323047832,-500.0,9.961e-05,2]
[355581622,1741323047842,-1305.12,9.961e-05,2]
[355581623,1741323047851,-500.0,9.961e-05,2]
[355581624,1741323047860,-500.0,9.961e-05,2]
[355581625,1741323047869,-500.0,9.961e-05,2]
[355581626,1741323047878,-509.4886905,9.961e-05,2]
[355581627,1741323047887,-500.0,9.961e-05,2]
[355581628,1741323047897,-500.0,9.961e-05,2]
[355581629,1741323047907,-500.0,9.961e-05,2]
[355581630,1741323047916,-525.99795256,9.961e-05,2]
[355581631,1741323047926,-840.41,9.961e-05,2]
[355581632,1741323047935,-500.0,9.961e-05,2]
[355581633,1741323047944,-500.0,9.961e-05,2]
[355581634,1741323047953,-500.0,9.961e-05,2]
[355581635,1741323047962,-500.0,9.961e-05,2]
[355581636,1741323047972,-500.0,9.961e-05,2]
[355581637,1741323047981,-500.0,9.961e-05,2]
[355581638,1741323047991,-500.0,9.961e-05,2]
[355581639,1741323048001,-691.75,9.961e-05,2]
[355581640,1741323048010,-532.17158141,9.961e-05,2]
[355581641,1741323048019,-500.0,9.961e-05,2]
[355581642,1741323048029,-500.0,9.961e-05,2]
[355581643,1741323048038,-500.0,9.961e-05,2]
[355581644,1741323048047,-500.0,9.961e-05,2]
[355581645,1741323048057,-500.0,9.961e-05,2]
[355581646,1741323048066,-500.0,9.961e-05,2]
[355581647,1741323048076,-500.0,9.961e-05,2]
[355581648,1741323048085,-500.0,9.961e-05,2]
[355581649,1741323048095,-500.0,9.961e-05,2]
[355581650,1741323048105,-500.0,9.961e-05,2]
[355581651,1741323048115,-507.86566501,9.961e-05,2]
[355581652,1741323048124,-500.0,9.961e-05,2]
[355581653,1741323048134,-500.0,9.961e-05,2]
[355581654,1741323048143,-500.0,9.961e-05,2]
[355581655,1741323048153,-500.0,9.961e-05,2]
[355581656,1741323048162,-500.0,9.961e-05,2]
[355581657,1741323048172,-500.0,9.961e-05,2]
[355581658,1741323048181,-500.17198082,9.961e-05,2]
[355581659,1741323048190,-229.37758101,9.961e-05,2]
[355581660,1741323048199,-500.0,9.961e-05,2]
[355581661,1741323048209,-500.0,9.961e-05,2]
[355581662,1741323048218,-504.45440133,9.961e-05,2]
[355581663,1741323048228,-500.0,9.961e-05,2]
[355581664,1741323048237,-715.63,9.961e-05,2]
[355581665,1741323048246,-500.0,9.961e-05,2]
[355581666,1741323048255,-500.0,9.961e-05,2]
[355581667,1741323048265,-500.0,9.961e-05,2]
[355581668,1741323048275,-500.0,9.961e-05,2]
[355581669,1741323048284,-500.0,9.961e-05,2]
[355581670,1741323048293,-500.0,9.961e-05,2]
[355581671,1741323048302,-678.05,9.961e-05,2]
[355581672,1741323048311,-500.0,9.961e-05,2]
[355581673,1741323048321,-500.0,9.961e-05,2]
[355581674,1741323048330,-509.03059583,9.961e-05,2]
[355581675,1741323048519,-500.0,9.961e-05,2]
[355581676,1741323048530,-1053.47,9.961e-05,2]
[355581677,1741323048540,-500.0,9.961e-05,2]
[355581678,1741323048551,-500.0,9.961e-05,2]
[355581679,1741323048560,-500.0,9.961e-05,2]
[355581680,1741323048569,-500.0,9.961e-05,2]
[355581681,1741323048579,-500.0,9.961e-05,2]
[355581682,1741323048590,-500.0,9.961e-05,2]
[355581683,1741323048600,-500.0,9.961e-05,2]
[355581684,1741323048609,-506.49859678,9.961e-05,2]
[355581685,1741323048619,-500.0,9.961e-05,2]
[355581686,1741323048628,-500.0,9.961e-05,2]
[355581687,1741323048638,-500.0,9.961e-05,2]
[355581688,1741323048647,-500.0,9.961e-05,2]
[355581689,1741323048657,-500.0,9.961e-05,2]
[355581690,1741323048666,-500.0,9.961e-05,2]
[355581691,1741323048675,-500.0,9.961e-05,2]
[355581692,1741323048685,-500.0,9.961e-05,2]
[355581693,1741323048695,-500.0,9.961e-05,2]
[355581694,1741323048705,-500.0,9.961e-05,2]
[355581695,1741323048714,-500.0,9.961e-05,2]
[355581696,1741323048723,-500.0,9.961e-05,2]
[355581697,1741323048733,-500.0,9.961e-05,2]
[355581698,1741323048742,-631.35,9.961e-05,2]
[355581699,1741323048752,-500.0,9.961e-05,2]
[355581700,1741323048761,-500.0,9.961e-05,2]
[355581701,1741323048771,-500.0,9.961e-05,2]
[355581702,1741323048780,-694.3,9.961e-05,2]
[355581703,1741323048789,-500.0,9.961e-05,2]
[355581704,1741323048798,-500.0,9.961e-05,2]
[355581705,1741323048807,-427.52831962,9.961e-05,2]
[355581706,1741323048817,-508.65699868,9.961e-05,2]
[355581707,1741323048827,-518.87505244,9.961e-05,2]
[355581708,1741323048836,-500.0,9.961e-05,2]
[355581709,1741323048846,-504.38946859,9.961e-05,2]
[355581710,1741323048855,-500.0,9.961e-05,2]
[355581711,1741323048865,-500.0,9.961e-05,2]
[355581712,1741323048875,-500.0,9.961e-05,2]
[355581713,1741323048884,-666.21,9.961e-05,2]
[355581714,1741323048894,-500.0,9.961e-05,2]
[355581715,1741323048903,-263.85103964,9.961e-05,2]
[355581716,1741323048913,-500.0,9.961e-05,2]
[355581717,1741323048924,-500.0,9.961e-05,2]
[355581718,1741323048934,-500.0,9.961e-05,2]
[355581719,1741323048943,-500.0,9.961e-05,2]
[355581720,1741323048953,-500.0,9.961e-05,2]
[355581721,1741323048962,-500.0,9.961e-05,2]
[355581722,1741323048971,-500.0,9.961e-05,2]
[355581723,1741323048981,-151.0,9.961e-05,2]
[355581724,1741323048991,-500.0,9.961e-05,2]
[355581725,1741323049001,-500.0,9.961e-05,2]
[355581726,1741323049010,-500.0,9.961e-05,2]
[355581727,1741323049020,-500.0,9.961e-05,2]
[355581728,1741323049030,-500.0,9.961e-05,2]
[355581729,1741323049040,-588.74499386,9.961e-05,2]
[355581730,1741323049050,-500.0,9.961e-05,2]